[Event "Live Chess"]
[Site "Chess.com"]
[Date "2024.06.01"]
[Round "-"]
[White "JohanKjeldahl"]
[Black "IanCalvert2"]
[Result "1-0"]
[WhiteElo "1862"]
[BlackElo "1583"]
[TimeControl "300"]
[EndTime "13:29:48 PDT"]
[Termination "JohanKjeldahl won by resignation"]

1. c4 {[%clk 0:04:55.8]} 1... Nf6 {[%clk 0:04:57.1]} 2. Nc3 {[%clk 0:04:54.6]}
2... d5 {[%clk 0:04:56.1]} 3. cxd5 {[%clk 0:04:52.8]} 3... Nxd5 {[%clk
0:04:55.2]} 4. e4 {[%clk 0:04:51.1]} 4... Nb4 {[%clk 0:04:51.4]} 5. Nf3 {[%clk
0:04:39.2]} 5... Nd3+ {[%clk 0:04:39.3]} 6. Bxd3 {[%clk 0:04:36.9]} 6... Qxd3
{[%clk 0:04:37.8]} 7. Qe2 {[%clk 0:04:35.7]} 7... Qxe2+ {[%clk 0:04:35.8]} 8.
Kxe2 {[%clk 0:04:34.9]} 8... c6 {[%clk 0:04:22.9]} 9. d4 {[%clk 0:04:33.7]} 9...
Bg4 {[%clk 0:04:18.1]} 10. h3 {[%clk 0:04:28.7]} 10... Bh5 {[%clk 0:04:15.9]}
11. Bf4 {[%clk 0:04:24.9]} 11... e6 {[%clk 0:04:11]} 12. g4 {[%clk 0:04:17.9]}
12... Bg6 {[%clk 0:04:07.5]} 13. Ne5 {[%clk 0:04:17.1]} 13... Nd7 {[%clk
0:04:03.7]} 14. Nxg6 {[%clk 0:04:13.6]} 14... hxg6 {[%clk 0:04:01.5]} 15. a3
{[%clk 0:04:06.2]} 15... Be7 {[%clk 0:03:55.5]} 16. Be3 {[%clk 0:04:03.6]} 16...
Rh4 {[%clk 0:03:39.1]} 17. f4 {[%clk 0:03:59.8]} 17... O-O-O {[%clk 0:03:34]}
18. Bf2 {[%clk 0:03:57.5]} 18... Rhh8 {[%clk 0:03:27.6]} 19. Kf3 {[%clk
0:03:48.5]} 19... g5 {[%clk 0:03:16.2]} 20. f5 {[%clk 0:03:33]} 20... exf5
{[%clk 0:03:08.3]} 21. exf5 {[%clk 0:03:31.5]} 21... f6 {[%clk 0:03:04.4]} 22.
Rad1 {[%clk 0:03:25.7]} 22... Nb6 {[%clk 0:03:02.4]} 23. h4 {[%clk 0:03:18.4]}
23... gxh4 {[%clk 0:02:58.4]} 24. Rxh4 {[%clk 0:03:15.9]} 24... Rxh4 {[%clk
0:02:55.8]} 25. Bxh4 {[%clk 0:03:14.7]} 25... Nd5 {[%clk 0:02:54.2]} 26. Nxd5
{[%clk 0:03:12]} 26... Rxd5 {[%clk 0:02:50.2]} 27. Ke4 {[%clk 0:03:06.5]} 27...
Kd7 {[%clk 0:02:39.5]} 28. Bg3 {[%clk 0:03:02.1]} 28... Bd6 {[%clk 0:02:34.8]}
29. Bxd6 {[%clk 0:02:59.3]} 29... Kxd6 {[%clk 0:02:29.8]} 30. Rh1 {[%clk
0:02:55]} 30... c5 {[%clk 0:02:28.1]} 31. dxc5+ {[%clk 0:02:51.6]} 31... Rxc5
{[%clk 0:02:25.9]} 32. Rd1+ {[%clk 0:02:49.1]} 32... Ke7 {[%clk 0:02:20.2]} 33.
Rd3 {[%clk 0:02:41.4]} 33... Re5+ {[%clk 0:02:17.6]} 34. Kf4 {[%clk 0:02:39.7]}
34... Re1 {[%clk 0:02:15.3]} 35. Rb3 {[%clk 0:02:37.4]} 35... b6 {[%clk
0:02:13.5]} 36. Rb4 {[%clk 0:02:35]} 36... Rf1+ {[%clk 0:02:07.5]} 37. Ke3
{[%clk 0:02:31.9]} 37... Re1+ {[%clk 0:02:05.9]} 38. Kf2 {[%clk 0:02:29.2]}
38... Re5 {[%clk 0:02:03.9]} 39. Kf3 {[%clk 0:02:27.4]} 39... Re1 {[%clk
0:02:01.1]} 40. Re4+ {[%clk 0:02:22.3]} 40... Rxe4 {[%clk 0:01:57.8]} 41. Kxe4
{[%clk 0:02:20.9]} 41... Kd6 {[%clk 0:01:56.4]} 42. Kd4 {[%clk 0:02:19.7]} 42...
a5 {[%clk 0:01:46.7]} 43. a4 {[%clk 0:02:10.6]} 43... Kc6 {[%clk 0:01:41.7]} 44.
Kc4 {[%clk 0:02:09.6]} 44... Kc7 {[%clk 0:01:37.2]} 45. Kb5 {[%clk 0:02:06.8]}
45... Kb7 {[%clk 0:01:36]} 46. b3 {[%clk 0:02:03.4]} 46... Kc7 {[%clk
0:01:33.7]} 47. Ka6 {[%clk 0:02:02.4]} 47... Kc6 {[%clk 0:01:32.5]} 48. Ka7
{[%clk 0:01:59.2]} 48... b5 {[%clk 0:01:31.1]} 49. Ka6 {[%clk 0:01:54.4]} 49...
bxa4 {[%clk 0:01:29.7]} 50. bxa4 {[%clk 0:01:53.4]} 50... Kc5 {[%clk 0:01:25.8]}
51. Kxa5 {[%clk 0:01:52.5]} 51... Kc6 {[%clk 0:01:24.8]} 52. Kb4 {[%clk
0:01:51.5]} 52... Kb6 {[%clk 0:01:23]} 53. a5+ {[%clk 0:01:49.7]} 53... Ka6
{[%clk 0:01:21.6]} 54. Kc5 {[%clk 0:01:48.7]} 54... Kxa5 {[%clk 0:01:20.3]} 55.
Kd6 {[%clk 0:01:48]} 55... Kb5 {[%clk 0:01:19.2]} 56. Ke6 {[%clk 0:01:47.3]}
56... Kc5 {[%clk 0:01:18.1]} 57. Kf7 {[%clk 0:01:46.5]} 57... Kd5 {[%clk
0:01:16.2]} 58. Kxg7 {[%clk 0:01:45.3]} 58... Ke5 {[%clk 0:01:14.9]} 59. Kg6
{[%clk 0:01:44.2]} 1-0

[Event "Live Chess"]
[Site "Chess.com"]
[Date "2024.06.01"]
[Round "-"]
[White "KGreenGator"]
[Black "dhairyapandyauk"]
[Result "0-1"]
[WhiteElo "1761"]
[BlackElo "1678"]
[TimeControl "300"]
[EndTime "13:30:08 PDT"]
[Termination "dhairyapandyauk won by resignation"]

1. c4 {[%clk 0:04:57.9]} 1... Nf6 {[%clk 0:04:57.3]} 2. d4 {[%clk 0:04:56.6]}
2... e6 {[%clk 0:04:56.7]} 3. Nc3 {[%clk 0:04:55.5]} 3... Bb4 {[%clk 0:04:55.7]}
4. Bd2 {[%clk 0:04:53.4]} 4... b6 {[%clk 0:04:51.5]} 5. Nf3 {[%clk 0:04:52.2]}
5... Bxc3 {[%clk 0:04:50.5]} 6. Bxc3 {[%clk 0:04:50.8]} 6... Ne4 {[%clk
0:04:50.2]} 7. Qd3 {[%clk 0:04:49.2]} 7... Bb7 {[%clk 0:04:49.3]} 8. e3 {[%clk
0:04:47.6]} 8... d6 {[%clk 0:04:48.5]} 9. Be2 {[%clk 0:04:46.2]} 9... Nd7 {[%clk
0:04:47.9]} 10. O-O {[%clk 0:04:44.2]} 10... f5 {[%clk 0:04:47.1]} 11. d5 {[%clk
0:04:39.6]} 11... e5 {[%clk 0:04:33.8]} 12. b3 {[%clk 0:04:32.3]} 12... O-O
{[%clk 0:04:32.4]} 13. Nd2 {[%clk 0:04:27.4]} 13... Nxc3 {[%clk 0:04:17.6]} 14.
Qxc3 {[%clk 0:04:24.4]} 14... f4 {[%clk 0:04:17.1]} 15. exf4 {[%clk 0:04:22]}
15... Rxf4 {[%clk 0:04:16.6]} 16. Bf3 {[%clk 0:04:16.4]} 16... Qg5 {[%clk
0:04:12.4]} 17. g3 {[%clk 0:04:10.6]} 17... Raf8 {[%clk 0:04:07.6]} 18. Kg2
{[%clk 0:04:06.9]} 18... Rd4 {[%clk 0:03:57.7]} 19. Ne4 {[%clk 0:04:01.8]} 19...
Qf5 {[%clk 0:03:50.8]} 20. Rfe1 {[%clk 0:03:54.4]} 20... Nf6 {[%clk 0:03:27.5]}
21. Nxf6+ {[%clk 0:03:50.5]} 21... Rxf6 {[%clk 0:03:27]} 22. Qe3 {[%clk
0:03:35]} 22... Rd3 {[%clk 0:03:24.1]} 23. Qe4 {[%clk 0:03:23.3]} 23... Qxf3+
{[%clk 0:03:17.8]} 24. Qxf3 {[%clk 0:03:20.9]} 24... Rdxf3 {[%clk 0:03:17]} 25.
Re2 {[%clk 0:03:18.3]} 25... Bc8 {[%clk 0:03:13.2]} 26. h3 {[%clk 0:03:16.9]}
26... h5 {[%clk 0:03:05.2]} 27. Rb2 {[%clk 0:03:07.4]} 27... g5 {[%clk
0:03:02.2]} 28. a4 {[%clk 0:03:04.8]} 28... a5 {[%clk 0:02:56.8]} 29. Rab1
{[%clk 0:02:59.6]} 29... Ba6 {[%clk 0:02:51.7]} 30. Rc2 {[%clk 0:02:56.2]} 30...
Bc8 {[%clk 0:02:49.7]} 31. Rd2 {[%clk 0:02:50.4]} 31... Bf5 {[%clk 0:02:47.3]}
32. Rbb2 {[%clk 0:02:48.6]} 32... Be4 {[%clk 0:02:46.1]} 33. Kg1 {[%clk
0:02:45.9]} 33... Rc3 {[%clk 0:02:41.9]} 34. Rd1 {[%clk 0:02:40]} 34... h4
{[%clk 0:02:36]} 35. Kh2 {[%clk 0:02:36.3]} 35... Rxf2+ {[%clk 0:02:30.5]} 36.
Rxf2 {[%clk 0:02:32.4]} 36... hxg3+ {[%clk 0:02:29.7]} 37. Kg1 {[%clk
0:02:30.6]} 37... gxf2+ {[%clk 0:02:29.3]} 38. Kxf2 {[%clk 0:02:29.5]} 38...
Rxh3 {[%clk 0:02:27.5]} 39. Rg1 {[%clk 0:02:26.2]} 39... Rf3+ {[%clk 0:02:19.7]}
40. Ke2 {[%clk 0:02:24.2]} 40... Rf5 {[%clk 0:02:16.9]} 41. Ke3 {[%clk
0:02:22.3]} 41... Bc2 {[%clk 0:02:15.1]} 42. b4 {[%clk 0:02:11.1]} 42... axb4
{[%clk 0:02:13.6]} 43. Rg2 {[%clk 0:02:05.7]} 43... b3 {[%clk 0:02:12.5]} 44.
Kd2 {[%clk 0:02:03.3]} 44... e4 {[%clk 0:02:06.6]} 45. Kc3 {[%clk 0:02:01.9]}
45... e3 {[%clk 0:02:05]} 46. Kb2 {[%clk 0:02:00.2]} 46... Rf2 {[%clk
0:01:59.9]} 47. Rxg5+ {[%clk 0:01:57.6]} 47... Kf7 {[%clk 0:01:59.6]} 48. Rh5
{[%clk 0:01:54.8]} 48... Bg6+ {[%clk 0:01:58]} 0-1

[Event "Live Chess"]
[Site "Chess.com"]
[Date "2024.06.01"]
[Round "-"]
[White "Kyrylo7770"]
[Black "wadsy27"]
[Result "0-1"]
[WhiteElo "1642"]
[BlackElo "2547"]
[TimeControl "300"]
[EndTime "13:30:10 PDT"]
[Termination "wadsy27 won by resignation"]

1. d4 {[%clk 0:04:59.1]} 1... Nf6 {[%clk 0:04:57.9]} 2. Nf3 {[%clk 0:04:58.9]}
2... e6 {[%clk 0:04:57.4]} 3. Bg5 {[%clk 0:04:58.5]} 3... h6 {[%clk 0:04:56.2]}
4. Bh4 {[%clk 0:04:57.5]} 4... d5 {[%clk 0:04:55.3]} 5. e3 {[%clk 0:04:56]} 5...
Be7 {[%clk 0:04:54.8]} 6. c4 {[%clk 0:04:54.9]} 6... c6 {[%clk 0:04:53.5]} 7.
Nc3 {[%clk 0:04:54.3]} 7... O-O {[%clk 0:04:52.6]} 8. Bd3 {[%clk 0:04:50.1]}
8... dxc4 {[%clk 0:04:51.7]} 9. Bxc4 {[%clk 0:04:49.4]} 9... b5 {[%clk
0:04:51.2]} 10. Bb3 {[%clk 0:04:48.9]} 10... a6 {[%clk 0:04:49.5]} 11. Bc2
{[%clk 0:04:48.4]} 11... c5 {[%clk 0:04:42.2]} 12. b3 {[%clk 0:04:43.1]} 12...
Nc6 {[%clk 0:04:38.9]} 13. d5 {[%clk 0:04:39.4]} 13... Nb4 {[%clk 0:04:34.9]}
14. Rb1 {[%clk 0:04:34]} 14... Nfxd5 {[%clk 0:04:31.8]} 15. Bxe7 {[%clk
0:04:32.6]} 15... Qxe7 {[%clk 0:04:30.8]} 16. a3 {[%clk 0:04:31.9]} 16... Nxc3
{[%clk 0:04:30]} 17. Qd2 {[%clk 0:04:29.1]} 17... Nxb1 {[%clk 0:04:29.2]} 18.
Bxb1 {[%clk 0:04:28.1]} 18... Rd8 {[%clk 0:04:28.9]} 19. Qb2 {[%clk 0:04:26.3]}
19... Nd3+ {[%clk 0:04:27.5]} 20. Bxd3 {[%clk 0:04:25.3]} 20... Rxd3 {[%clk
0:04:27.4]} 21. O-O {[%clk 0:04:24.8]} 21... Bb7 {[%clk 0:04:25.7]} 22. Ne5
{[%clk 0:04:23.5]} 22... Rd5 {[%clk 0:04:24.8]} 23. Ng4 {[%clk 0:04:20.3]} 23...
Rad8 {[%clk 0:04:22.2]} 24. b4 {[%clk 0:04:18.8]} 24... c4 {[%clk 0:04:20.3]}
25. Qc3 {[%clk 0:04:17.5]} 25... Rd1 {[%clk 0:04:19.4]} 26. g3 {[%clk
0:04:14.8]} 26... h5 {[%clk 0:04:17.3]} 27. Ne5 {[%clk 0:04:10.6]} 27... Qf6
{[%clk 0:04:13.8]} 28. f4 {[%clk 0:04:08.3]} 28... Qf5 {[%clk 0:04:12.2]} 29.
Rxd1 {[%clk 0:03:59.6]} 29... Rxd1+ {[%clk 0:04:10.4]} 30. Kf2 {[%clk
0:03:59.4]} 30... Qh3 {[%clk 0:04:09.4]} 0-1

[Event "Live Chess"]
[Site "Chess.com"]
[Date "2024.06.01"]
[Round "-"]
[White "jimwad"]
[Black "Stanbad1"]
[Result "0-1"]
[WhiteElo "1279"]
[BlackElo "2652"]
[TimeControl "300"]
[EndTime "13:30:40 PDT"]
[Termination "Stanbad1 won by resignation"]

1. d4 {[%clk 0:04:58.5]} 1... Nf6 {[%clk 0:04:58.7]} 2. c4 {[%clk 0:04:57.4]}
2... g6 {[%clk 0:04:58.6]} 3. Nc3 {[%clk 0:04:56.3]} 3... Bg7 {[%clk 0:04:58.5]}
4. e3 {[%clk 0:04:54.7]} 4... d6 {[%clk 0:04:57.7]} 5. Nf3 {[%clk 0:04:53.8]}
5... O-O {[%clk 0:04:57.2]} 6. Bd3 {[%clk 0:04:52.7]} 6... c5 {[%clk 0:04:56.7]}
7. d5 {[%clk 0:04:51.4]} 7... a6 {[%clk 0:04:56.3]} 8. a3 {[%clk 0:04:50.1]}
8... b5 {[%clk 0:04:55.7]} 9. b3 {[%clk 0:04:49.1]} 9... Nxd5 {[%clk 0:04:52.9]}
10. cxd5 {[%clk 0:04:47.5]} 10... Bxc3+ {[%clk 0:04:49.5]} 11. Bd2 {[%clk
0:04:44.2]} 11... Bxa1 {[%clk 0:04:49.1]} 12. Qxa1 {[%clk 0:04:43]} 12... Nd7
{[%clk 0:04:48.6]} 13. O-O {[%clk 0:04:40.3]} 13... Nf6 {[%clk 0:04:46.4]} 14.
Bc3 {[%clk 0:04:31.2]} 14... Bb7 {[%clk 0:04:44.3]} 15. e4 {[%clk 0:04:29.2]}
15... Re8 {[%clk 0:04:43]} 16. Re1 {[%clk 0:04:21.7]} 16... Rc8 {[%clk
0:04:35.4]} 17. e5 {[%clk 0:04:11.4]} 17... Nxd5 {[%clk 0:04:34]} 18. exd6
{[%clk 0:03:58.7]} 18... Nxc3 {[%clk 0:04:32.3]} 19. Qxc3 {[%clk 0:03:55.9]}
19... exd6 {[%clk 0:04:22.1]} 20. Rxe8+ {[%clk 0:03:53.6]} 20... Qxe8 {[%clk
0:04:22]} 21. Qf6 {[%clk 0:03:48.5]} 21... Bxf3 {[%clk 0:04:10.9]} 22. Qxf3
{[%clk 0:03:46.1]} 22... c4 {[%clk 0:04:10.5]} 23. Bf1 {[%clk 0:03:44.9]} 23...
c3 {[%clk 0:04:09.4]} 0-1

[Event "Live Chess"]
[Site "Chess.com"]
[Date "2024.06.01"]
[Round "-"]
[White "agamilewska"]
[Black "Duke_of_Bebington"]
[Result "1/2-1/2"]
[WhiteElo "1768"]
[BlackElo "1617"]
[TimeControl "300"]
[EndTime "13:30:43 PDT"]
[Termination "Game drawn by agreement"]

1. d4 {[%clk 0:04:58.1]} 1... d5 {[%clk 0:04:54.7]} 2. c4 {[%clk 0:04:55.9]}
2... c6 {[%clk 0:04:48.4]} 3. e3 {[%clk 0:04:55.1]} 3... Nf6 {[%clk 0:04:44.6]}
4. Nc3 {[%clk 0:04:54.6]} 4... Bf5 {[%clk 0:04:37.7]} 5. Nf3 {[%clk 0:04:54]}
5... e6 {[%clk 0:04:36.5]} 6. c5 {[%clk 0:04:52.8]} 6... Nbd7 {[%clk 0:04:30]}
7. a3 {[%clk 0:04:51.7]} 7... b6 {[%clk 0:04:29.2]} 8. b4 {[%clk 0:04:50.8]}
8... a5 {[%clk 0:04:26.5]} 9. Bb2 {[%clk 0:04:48.2]} 9... bxc5 {[%clk 0:04:18]}
10. bxc5 {[%clk 0:04:43.1]} 10... Ne4 {[%clk 0:04:07.3]} 11. Nxe4 {[%clk
0:04:41]} 11... Bxe4 {[%clk 0:04:06.1]} 12. Bd3 {[%clk 0:04:38.2]} 12... f5
{[%clk 0:04:01.7]} 13. O-O {[%clk 0:04:33.6]} 13... Be7 {[%clk 0:04:00.9]} 14.
Bxe4 {[%clk 0:04:25.7]} 14... fxe4 {[%clk 0:03:57.9]} 15. Ne5 {[%clk 0:04:18.2]}
15... Nxe5 {[%clk 0:03:56.2]} 16. dxe5 {[%clk 0:04:18.1]} 16... Bxc5 {[%clk
0:03:52.8]} 17. Bd4 {[%clk 0:04:16.6]} 17... Bxd4 {[%clk 0:03:41.9]} 18. exd4
{[%clk 0:04:16.5]} 18... O-O {[%clk 0:03:40]} 19. Qa4 {[%clk 0:04:12.5]} 19...
Qb6 {[%clk 0:03:32.7]} 20. Rac1 {[%clk 0:04:10]} 20... Rac8 {[%clk 0:03:29.6]}
21. Rc5 {[%clk 0:04:07.3]} 21... Rc7 {[%clk 0:03:27.8]} 22. Qxa5 {[%clk
0:04:04.4]} 22... Rb8 {[%clk 0:03:15]} 23. Qxb6 {[%clk 0:03:58.5]} 23... Rxb6
{[%clk 0:03:13.8]} 24. h3 {[%clk 0:03:57.2]} 24... Ra7 {[%clk 0:03:10.5]} 25.
Ra1 {[%clk 0:03:56.1]} 25... Rba6 {[%clk 0:03:08.1]} 26. Rc3 {[%clk 0:03:51.2]}
26... Kf7 {[%clk 0:03:05.9]} 27. g4 {[%clk 0:03:49.4]} 27... Ke7 {[%clk
0:03:05.1]} 28. Kg2 {[%clk 0:03:48.3]} 28... Kd7 {[%clk 0:03:04.2]} 29. Kg3
{[%clk 0:03:47.4]} 29... Ra4 {[%clk 0:03:03.3]} 30. Kf4 {[%clk 0:03:37.8]} 30...
Rxd4 {[%clk 0:03:00.6]} 31. Ke3 {[%clk 0:03:37.1]} 31... Rda4 {[%clk 0:02:45.4]}
32. h4 {[%clk 0:03:31.3]} 32... R7a5 {[%clk 0:02:40.9]} 33. Rb3 {[%clk
0:03:28.6]} 33... Kc7 {[%clk 0:02:38.9]} 34. g5 {[%clk 0:03:25.4]} 34... g6
{[%clk 0:02:35.9]} 35. Kd2 {[%clk 0:03:00]} 35... c5 {[%clk 0:02:33]} 36. Kc2
{[%clk 0:02:56.9]} 36... c4 {[%clk 0:02:24.3]} 37. Rh3 {[%clk 0:02:52.5]} 37...
d4 {[%clk 0:02:18.7]} 38. h5 {[%clk 0:02:50.9]} 38... Rxe5 {[%clk 0:02:00.2]}
39. hxg6 {[%clk 0:02:47]} 39... hxg6 {[%clk 0:01:59.4]} 40. Rh7+ {[%clk
0:02:19.4]} 40... Kc6 {[%clk 0:01:55.1]} 41. Rb1 {[%clk 0:01:47.9]} 41... d3+
{[%clk 0:01:41.9]} 42. Kc3 {[%clk 0:01:41.4]} 42... Rxa3+ {[%clk 0:01:37.6]} 43.
Kxc4 {[%clk 0:01:40.7]} 43... Rc5+ {[%clk 0:01:27.9]} 44. Kd4 {[%clk 0:01:39.5]}
44... Ra4+ {[%clk 0:01:24.1]} 45. Ke3 {[%clk 0:01:38]} 45... Rb5 {[%clk
0:01:13.5]} 46. Rc1+ {[%clk 0:01:35.5]} 46... Kd6 {[%clk 0:01:08.3]} 47. Rcc7
{[%clk 0:01:32.6]} 47... Ke5 {[%clk 0:00:51.1]} 48. f4+ {[%clk 0:01:24.2]} 48...
exf3 {[%clk 0:00:47.8]} 49. Kxf3 {[%clk 0:01:23.7]} 49... d2 {[%clk 0:00:41.7]}
50. Ke2 {[%clk 0:01:22.6]} 50... Rd5 {[%clk 0:00:39.6]} 51. Rh1 {[%clk
0:01:11.6]} 51... Re4+ {[%clk 0:00:37.1]} 52. Kd1 {[%clk 0:01:10.3]} 52... Ra4
{[%clk 0:00:21.3]} 53. Kc2 {[%clk 0:00:54.4]} 53... Ra2+ {[%clk 0:00:19]} 54.
Kb1 {[%clk 0:00:51]} 54... d1=Q+ {[%clk 0:00:17.7]} 55. Rxd1 {[%clk 0:00:49.6]}
55... Rxd1+ {[%clk 0:00:17.6]} 56. Kxa2 {[%clk 0:00:48.8]} 56... Kf5 {[%clk
0:00:16.6]} 57. Rc5+ {[%clk 0:00:47.4]} 57... e5 {[%clk 0:00:15.9]} 58. Kb3
{[%clk 0:00:44.5]} 58... Re1 {[%clk 0:00:15.3]} 59. Kc2 {[%clk 0:00:41.3]} 59...
Re4 {[%clk 0:00:14.8]} 60. Kd3 {[%clk 0:00:39.9]} 60... Rd4+ {[%clk 0:00:13]}
61. Ke3 {[%clk 0:00:39.1]} 61... Re4+ {[%clk 0:00:11.3]} 62. Kf3 {[%clk
0:00:38]} 62... Rf4+ {[%clk 0:00:10.6]} 63. Ke3 {[%clk 0:00:37.3]} 63... Re4+
{[%clk 0:00:10]} 1/2-1/2

[Event "Live Chess"]
[Site "Chess.com"]
[Date "2024.06.01"]
[Round "-"]
[White "Delacorta"]
[Black "CCGoodKnightRookie"]
[Result "0-1"]
[WhiteElo "1565"]
[BlackElo "2271"]
[TimeControl "300"]
[EndTime "13:31:02 PDT"]
[Termination "CCGoodKnightRookie won by resignation"]

1. d4 {[%clk 0:04:56.9]} 1... d5 {[%clk 0:04:59]} 2. Nf3 {[%clk 0:04:55.7]} 2...
c5 {[%clk 0:04:56.2]} 3. e3 {[%clk 0:04:54.5]} 3... Nc6 {[%clk 0:04:55]} 4. Bd3
{[%clk 0:04:53.1]} 4... Bg4 {[%clk 0:04:50.6]} 5. Nbd2 {[%clk 0:04:51.1]} 5...
e6 {[%clk 0:04:49.5]} 6. O-O {[%clk 0:04:48.8]} 6... Bd6 {[%clk 0:04:48.7]} 7.
b3 {[%clk 0:04:44.1]} 7... cxd4 {[%clk 0:04:47.1]} 8. exd4 {[%clk 0:04:42.6]}
8... Nxd4 {[%clk 0:04:45.8]} 9. Be2 {[%clk 0:04:40.7]} 9... Nxe2+ {[%clk
0:04:43.3]} 10. Qxe2 {[%clk 0:04:39.8]} 10... Nf6 {[%clk 0:04:42.1]} 11. Bb2
{[%clk 0:04:38.7]} 11... O-O {[%clk 0:04:38.1]} 12. Rad1 {[%clk 0:04:29.7]}
12... e5 {[%clk 0:04:36.3]} 13. h3 {[%clk 0:04:28.9]} 13... Bh5 {[%clk
0:04:33.7]} 14. g4 {[%clk 0:04:27.5]} 14... Nxg4 {[%clk 0:04:32]} 15. hxg4
{[%clk 0:04:20.4]} 15... Bxg4 {[%clk 0:04:31.9]} 16. Qb5 {[%clk 0:04:00.4]}
16... e4 {[%clk 0:04:27.1]} 17. Nxe4 {[%clk 0:03:43.6]} 17... dxe4 {[%clk
0:04:20.8]} 18. Rxd6 {[%clk 0:03:42.2]} 18... Qxd6 {[%clk 0:04:13.2]} 19. Qg5
{[%clk 0:03:41.1]} 19... Qg6 {[%clk 0:04:06.5]} 0-1

[Event "Live Chess"]
[Site "Chess.com"]
[Date "2024.06.01"]
[Round "-"]
[White "Enhard"]
[Black "BostonStrangler"]
[Result "0-1"]
[WhiteElo "1434"]
[BlackElo "2144"]
[TimeControl "300"]
[EndTime "13:31:17 PDT"]
[Termination "BostonStrangler won by checkmate"]

1. d4 {[%clk 0:04:57.7]} 1... Nf6 {[%clk 0:04:58.4]} 2. Bg5 {[%clk 0:04:56.8]}
2... Ne4 {[%clk 0:04:55.9]} 3. Bf4 {[%clk 0:04:55.8]} 3... Nc6 {[%clk
0:04:52.2]} 4. c3 {[%clk 0:04:52]} 4... d6 {[%clk 0:04:46]} 5. f3 {[%clk
0:04:50.3]} 5... Nf6 {[%clk 0:04:40.5]} 6. Bg5 {[%clk 0:04:48.8]} 6... e5 {[%clk
0:04:36.1]} 7. e3 {[%clk 0:04:43.8]} 7... h6 {[%clk 0:04:34.6]} 8. Bxf6 {[%clk
0:04:40.2]} 8... Qxf6 {[%clk 0:04:33.1]} 9. Ne2 {[%clk 0:04:37.1]} 9... Be7
{[%clk 0:04:22.4]} 10. Ng3 {[%clk 0:04:35.9]} 10... O-O {[%clk 0:04:16.8]} 11.
d5 {[%clk 0:04:34.1]} 11... Nd8 {[%clk 0:04:14.8]} 12. e4 {[%clk 0:04:33.2]}
12... Qg6 {[%clk 0:04:10.7]} 13. Be2 {[%clk 0:04:29.6]} 13... Bh4 {[%clk
0:04:08.3]} 14. O-O {[%clk 0:04:14.2]} 14... Bxg3 {[%clk 0:04:06.2]} 15. hxg3
{[%clk 0:04:14.1]} 15... Qxg3 {[%clk 0:04:05.4]} 16. Nd2 {[%clk 0:04:12.7]}
16... f5 {[%clk 0:04:03.2]} 17. exf5 {[%clk 0:03:53.7]} 17... Bxf5 {[%clk
0:03:59.3]} 18. Ne4 {[%clk 0:03:46.9]} 18... Bxe4 {[%clk 0:03:58.4]} 19. fxe4
{[%clk 0:03:46.8]} 19... Rxf1+ {[%clk 0:03:52.4]} 20. Qxf1 {[%clk 0:03:45.1]}
20... Nf7 {[%clk 0:03:51.9]} 21. Bf3 {[%clk 0:03:41.4]} 21... Ng5 {[%clk
0:03:49.4]} 22. Qe2 {[%clk 0:03:31.6]} 22... Rf8 {[%clk 0:03:42.1]} 23. Rf1
{[%clk 0:03:29.6]} 23... Nh3+ {[%clk 0:03:38.6]} 24. Kh1 {[%clk 0:03:27.3]}
24... Nf4 {[%clk 0:03:37.5]} 25. Qd2 {[%clk 0:03:19.5]} 25... Rf6 {[%clk
0:03:26.4]} 26. c4 {[%clk 0:03:17]} 26... Rg6 {[%clk 0:03:25]} 27. Rg1 {[%clk
0:03:07.7]} 27... Qh4# {[%clk 0:03:22.4]} 0-1